fUST/lending_fUST_20260624
["ID","MTS","AMOUNT","RATE_DAILY","PERIOD"]
[426296423,1782255032000,-4373.07067097,0.00027896,2]
[426296427,1782255032000,-5450.06840734,0.00028304,2]
[426296440,1782255038000,-7173.52928039,0.00029527,2]
[426296433,1782255038000,-59706.53806522,0.00028408,2]
[426296434,1782255038000,-5564.13250814,0.00028508,2]
[426296435,1782255038000,-6256.25447265,0.00028712,2]
[426296436,1782255038000,-88283.05374174,0.00028815,2]
[426296438,1782255038000,-6527.0661437,0.00029119,2]
[426296437,1782255038000,-6524.55957791,0.00028915,2]
[426296439,1782255038000,-7123.11973831,0.00029323,2]
[426296442,1782255038000,-8027.58149418,0.00029935,2]
[426296432,1782255038000,-316131.34516452,0.00028408,2]
[426296441,1782255038000,-7822.49898287,0.00029731,2]
[426296443,1782255038000,-8471.46868535,0.00030139,2]
[426296450,1782255038000,-10114.61918866,0.00031362,2]
[426296452,1782255038000,-5410.76318742,0.00031566,2]
[426296449,1782255038000,-236.64663539,0.00031362,2]
[426296451,1782255038000,-1717.13588591,0.00031566,2]
[426296445,1782255038000,-9120.43838783,0.00030546,2]
[426296447,1782255038000,-9769.40809031,0.00030954,2]
[426296446,1782255038000,-9218.2653247,0.0003075,2]
[426296444,1782255038000,-8622.92340944,0.00030342,2]
[426296448,1782255038000,-9813.60723996,0.00031158,2]
[426296453,1782255040000,-3214.65,0.00031566,2]
[426296712,1782255046000,-10811.86511382,0.00031973,2]
[426296710,1782255046000,-66.40008189,0.00031566,2]
[426296713,1782255046000,-999.0,0.00032876,120]
[426296715,1782255046000,-488.98145174,0.00033698,120]
[426296714,1782255046000,-189.14054842,0.000332,117]
[426296711,1782255046000,-10744.38970171,0.00031769,2]
[426296716,1782255046000,-510.01854826,0.00033698,120]
[426296717,1782255046000,-355.0,0.00034246,2]
[426296718,1782255046000,-355.0,0.0003452,3]
[426296720,1782255046000,-355.0,0.00034794,4]
[426296725,1782255046000,-0.45299876,0.00035616,7]
[426296721,1782255046000,-306.54087944,0.00035,13]
[426296724,1782255046000,-999.0,0.00035342,120]
[426296722,1782255046000,-355.0,0.00035068,5]
[426296719,1782255046000,-999.0,0.0003452,120]
[426296723,1782255046000,-355.0,0.00035342,6]
[426296730,1782255047000,-355.0,0.0003589,8]
[426296740,1782255047000,-999.0,0.00036986,120]
[426296738,1782255047000,-355.0,0.00036712,11]
[426296742,1782255047000,-355.0,0.0003726,13]
[426296729,1782255047000,-354.54700124,0.00035616,7]
[426296739,1782255047000,-355.0,0.00036986,12]
[426296732,1782255047000,-865.49465257,0.00036164,120]
[426296736,1782255047000,-355.0,0.00036438,10]
[426296731,1782255047000,-355.0,0.00036164,9]
[426296734,1782255047000,-133.50534743,0.00036164,120]
[426296745,1782255047000,-401.16034101,0.00037808,15]
[426296760,1782255047000,-365.62792535,0.00039999,31]
[426296747,1782255047000,-999.0,0.00037808,120]
[426296761,1782255047000,-304.48163807,0.0004,30]
[426296743,1782255047000,-355.0,0.00037534,14]
[426296752,1782255047000,-999.0,0.0003863,120]
[426296757,1782255047000,-1044.8,0.000393,120]
[426296749,1782255047000,-1044.8,0.000383,120]
[426296759,1782255047000,-1044.8,0.000398,120]
[426296756,1782255047000,-417.15472785,0.000388,120]
[426296758,1782255047000,-999.0,0.00039452,120]
[426296754,1782255047000,-1044.8,0.000388,120]
[426296755,1782255047000,-1561.79002029,0.000388,2]
[426296750,1782255047000,-185.98,0.00038511,3]
[426296781,1782255748000,-152.49209071,0.00021467,2]
[426296841,1782256231000,-163.51169397,0.00021527,2]
[426296820,1782256231000,-381.32033081,0.00019611,9]
[426296822,1782256231000,-5000.0,0.00019809,9]
[426296824,1782256231000,-300.0,0.00020008,2]
[426296826,1782256231000,-4948.89388055,0.00020009,9]
[426296847,1782256231000,-3064.9346386,0.00025294,2]
[426296839,1782256231000,-189.75033529,0.00021527,2]
[426296830,1782256231000,-51.10611945,0.00020009,9]
[426296848,1782256231000,-958.0,0.00025604,2]
[426296835,1782256231000,-222.54188993,0.00021467,2]
[426296836,1782256231000,-172.94192696,0.00021527,2]
[426296842,1782256231000,-186.518827,0.0002516,2]
[426296851,1782256231000,-1839.0,0.00025604,2]
[426296845,1782256231000,-445.0,0.00025207,2]
[426296832,1782256231000,-153.55790929,0.00021467,2]
[426296855,1782256232000,-505.44599689,0.00027485,8]
[426296879,1782256232000,-500.0,0.00027485,8]
[426296881,1782256232000,-500.0,0.00027485,8]
[426296883,1782256232000,-500.0,0.00027485,8]
[426296877,1782256232000,-500.0,0.00027485,8]
[426296874,1782256232000,-500.0,0.00027485,8]
[426296876,1782256232000,-500.0,0.00027485,8]
[426296865,1782256232000,-500.0,0.00027485,8]
[426296867,1782256232000,-500.0,0.00027485,8]
[426296863,1782256232000,-500.0,0.00027485,8]
[426296870,1782256232000,-178.646,0.00027485,16]
[426296872,1782256232000,-500.0,0.00027485,8]
[426296859,1782256232000,-500.0,0.00027485,8]
[426296861,1782256232000,-500.0,0.00027485,8]
[426296853,1782256232000,-160.0,0.00027,7]
[426296857,1782256232000,-500.0,0.00027485,8]
[426296884,1782256232000,-500.0,0.00027486,8]
[426296868,1782256232000,-500.0,0.00027485,8]
[426296886,1782256232000,-500.0,0.00027486,8]
[426296888,1782256232000,-500.0,0.00027486,8]
[426296922,1782256232000,-1302.37594894,0.00027591,2]
[426296913,1782256232000,-36347.01474548,0.00027591,2]
[426296916,1782256232000,-12931.67985799,0.00027591,2]
[426296918,1782256232000,-5907.0,0.00027591,2]
[426296920,1782256232000,-1114.51852297,0.00027591,2]
[426296911,1782256232000,-500.0,0.00027487,6]
[426296909,1782256232000,-500.0,0.00027487,8]
[426296894,1782256232000,-452.63424768,0.00027486,8]
[426296907,1782256232000,-500.0,0.00027487,8]
[426296903,1782256232000,-500.0,0.00027487,2]
[426296901,1782256232000,-500.1959865,0.00027486,60]
[426296900,1782256232000,-500.0,0.00027486,8]
[426296897,1782256232000,-425.8586056,0.00027486,8]
[426296896,1782256232000,-500.0,0.00027486,8]
[426296890,1782256232000,-1000.0,0.00027486,2]
[426296892,1782256232000,-500.0,0.00027486,8]
[426296905,1782256232000,-500.0,0.00027487,8]
[426296983,1782256238000,-17.07389661,0.00027486,60]
[426296976,1782256238000,-482.92610339,0.00027486,60]
[426297009,1782256238000,-878.80552819,0.00027591,2]
[426296985,1782256238000,-2678.92610339,0.00027591,2]
[426297011,1782256238000,-32460.89352629,0.00027591,2]
[426297266,1782256240000,-974.73856006,0.00027591,2]
[426297264,1782256240000,-1521.4232988,0.00027591,2]
[426297262,1782256240000,-2251.014864,0.00027591,2]
[426297254,1782256240000,-4598.9469206,0.00027591,2]
[426297594,1782256243000,-22872.75081793,0.00027591,2]
[426297756,1782256246000,-3200.00000001,0.00027387,2]
[426297754,1782256246000,-540.56163886,0.00027387,2]
[426297755,1782256246000,-5147.45017673,0.00027387,2]
[426297796,1782257432000,-328.63213831,0.0002187,7]
[426297794,1782257432000,-1165.14118163,0.00019581,9]
[426297793,1782257432000,-2617.07948091,0.00019385,9]
[426297795,1782257432000,-3834.85881837,0.00019581,9]
[426297797,1782257432000,-244.0,0.00024822,14]
[426297799,1782257432000,-36.4171264,0.00027186,2]
[426297798,1782257432000,-186.0,0.00025819,2]
[426297806,1782257438000,-463.5828736,0.00027186,2]
[426297809,1782257438000,-500.0,0.00027186,2]
[426297808,1782257438000,-500.0,0.00027186,2]
[426297807,1782257438000,-500.0,0.00027186,2]
[426297815,1782257438000,-500.0,0.00027186,2]
[426297818,1782257438000,-67697.81263511,0.00027187,2]
[426297811,1782257438000,-500.0,0.00027186,2]
[426297813,1782257438000,-500.0,0.00027186,2]
[426297819,1782257438000,-9517.94150334,0.00027187,2]
[426297816,1782257438000,-625.8680571,0.00027186,2]
[426297812,1782257438000,-500.0,0.00027186,2]
[426297810,1782257438000,-500.0,0.00027186,2]
[426297817,1782257438000,-500.0,0.00027186,2]
[426297814,1782257438000,-500.0,0.00027186,2]
[426297878,1782257443000,-1412.16981293,0.00027187,2]
[426298121,1782257446000,-303.0,0.00027187,2]
[426298117,1782257446000,-4693.72026097,0.00027187,2]
[426298119,1782257446000,-554.05762207,0.00027187,2]
[426299363,1782258585000,-1948.68544124,0.00018117,9]
[426299378,1782258632000,-288.19986417,0.00017936,9]
[426299379,1782258632000,-11.80013583,0.00017936,9]
[426299380,1782258632000,-288.19986417,0.00018117,9]
[426299377,1782258632000,-637.63281249,0.00017936,9]
[426299444,1782258639000,-1948.6854412,0.00025174,2]
[426299448,1782258639000,-186.0,0.00025993,2]
[426299446,1782258639000,-1066.8531834,0.00025654,2]
[426299450,1782258639000,-445.0,0.00025993,2]
[426299451,1782258639000,-157.23644642,0.000268,2]
[426299436,1782258639000,-2763.11469459,0.00018117,9]
[426299438,1782258639000,-167.0,0.00020438,3]
[426299442,1782258639000,-186.518827,0.00024623,2]
[426299440,1782258639000,-3590.448674,0.0002437,2]
[426299453,1782258639000,-197.07549497,0.00026986,2]
[426299457,1782258639000,-500.0,0.00026986,2]
[426299461,1782258639000,-500.0,0.00026986,2]
[426299479,1782258639000,-62132.35219606,0.00026987,2]
[426299473,1782258639000,-616719.59782823,0.00026987,2]
[426299469,1782258639000,-500.0,0.00026986,2]
[426299471,1782258639000,-500.0,0.00026986,2]
[426299459,1782258639000,-423.32487148,0.00026986,2]
[426299463,1782258639000,-500.0,0.00026986,2]
[426299456,1782258639000,-500.0,0.00026986,2]
[426299467,1782258639000,-478.23777187,0.00026986,2]
[426299465,1782258639000,-518.41242348,0.00026986,2]
[426299688,1782258641000,-1294.80407779,0.00026987,2]
[426299693,1782258641000,-1948.68544124,0.00026987,2]
[426300028,1782258643000,-4810.20075139,0.00026987,2]
[426300026,1782258643000,-1213.56146233,0.00026987,2]
[426300353,1782258646000,-12146.49035461,0.00026887,2]
[426301147,1782259057000,-2000.00740684,0.00015,2]
[426301157,1782259601000,-359.34140937,0.00024715,2]
[426301155,1782259601000,-5000.0,0.00014702,2]
[426301158,1782259601000,-151.145,0.00025993,2]
[426301161,1782259601000,-958.0,0.00025993,2]
[426301159,1782259601000,-166.707,0.00025993,2]
[426301160,1782259601000,-1841.0,0.00025993,2]
[426301156,1782259601000,-874.18507521,0.00015,2]
[426301167,1782259601000,-167.17943007,0.00026687,2]
[426301163,1782259601000,-152.22256809,0.000266,2]
[426301169,1782259601000,-1582.97013546,0.00026687,2]
[426301168,1782259601000,-3213.53259532,0.00026687,2]
[426301162,1782259601000,-1418.0,0.00025993,2]
[426301164,1782259601000,-154.71861865,0.000266,2]
[426301166,1782259601000,-155.72563684,0.000266,2]
[426301165,1782259601000,-155.30031699,0.000266,2]
[426301183,1782259832000,-254.19110299,0.00026222,9]
[426301184,1782259833000,-2703.73802763,0.00026222,9]
[426301190,1782259833000,-405.93531867,0.00026587,2]
[426301189,1782259833000,-428.63213831,0.00026587,2]
[426301186,1782259833000,-1234.78110252,0.00026587,2]
[426301185,1782259833000,-647.09807696,0.00026487,5]
[426301187,1782259833000,-773.17200735,0.00026587,2]
[426301188,1782259833000,-434.57727201,0.00026587,2]
[426301203,1782259838000,-500.0,0.00026686,2]
[426301199,1782259838000,-176.9471222,0.00026686,2]
[426301201,1782259838000,-190.29151221,0.00026686,2]
[426301204,1782259838000,-531.54608979,0.00026686,2]
[426301200,1782259838000,-192.50972991,0.00026686,2]
[426301197,1782259838000,-769.5242846,0.00026587,2]
[426301198,1782259838000,-323.0528778,0.00026686,2]
[426301202,1782259838000,-500.0,0.00026686,2]
[426301206,1782259839000,-642.55,0.00026687,2]
[426301205,1782259839000,-142262.04653023,0.00026687,2]
[426301207,1782259839000,-145253.00880477,0.00026687,2]
[426301209,1782259839000,-1897.99622341,0.00026687,2]
[426301208,1782259839000,-2219.85046615,0.00026687,2]
[426301216,1782259841000,-2604.88942571,0.00026687,2]
[426301215,1782259841000,-2289.03558696,0.00026687,2]
[426301213,1782259841000,-1907.83213831,0.00026687,2]
[426301214,1782259841000,-892.23815474,0.00026687,2]
[426301226,1782259843000,-460.0,0.00026687,2]
[426301227,1782259844000,-4618.65454512,0.00026687,2]
[426301229,1782259844000,-1115.78353468,0.00026687,2]
[426301228,1782259844000,-1816.669754,0.00026687,2]
[426301403,1782259847000,-12155.73467673,0.00026687,2]
[426301401,1782259847000,-3846.62329404,0.00026687,2]
[426303458,1782261038000,-165.5202998,0.00020576,2]
[426303452,1782261038000,-376.10422368,0.00020576,2]
[426303454,1782261038000,-163.44609028,0.00020576,2]
[426303450,1782261038000,-213.08558231,0.00020576,2]
[426303460,1782261038000,-629.92980275,0.00020576,2]
[426303456,1782261038000,-216.00731085,0.00020576,2]
[426303470,1782261038000,-311.74478616,0.0002093,2]
[426303466,1782261038000,-157.91134695,0.00020576,2]
[426303464,1782261038000,-309.31568685,0.00020576,2]
[426303468,1782261038000,-360.56824912,0.000208,2]
[426303472,1782261038000,-288.29737414,0.00020931,2]
[426303446,1782261038000,-388.47580118,0.00020576,2]
[426303474,1782261038000,-150.70478856,0.00020931,2]
[426303476,1782261038000,-500.0,0.00020931,2]
[426303462,1782261038000,-178.17594547,0.00020576,2]
[426303448,1782261038000,-221.13424401,0.00020576,2]
[426303421,1782261038000,-306.32,0.00019906,2]
[426303442,1782261038000,-341.05979773,0.00020553,2]
[426303483,1782261038000,-582.71370177,0.00020931,2]
[426303415,1782261038000,-992.40236087,0.00018555,9]
[426303413,1782261038000,-936.6377374,0.00018369,9]
[426303417,1782261038000,-209.97660092,0.00019244,2]
[426303427,1782261038000,-33294.1701276,0.0002,3]
[426303429,1782261038000,-511.5896966,0.00020021,2]
[426303430,1782261038000,-194.23790059,0.00020043,2]
[426303432,1782261038000,-564.15633553,0.00020043,2]
[426303419,1782261038000,-306.36,0.00019878,2]
[426303434,1782261038000,-155.87239308,0.00020043,2]
[426303423,1782261038000,-5262.94636881,0.00019921,2]
[426303425,1782261038000,-300.0,0.00019999,2]
[426303436,1782261038000,-419.95320183,0.00020043,2]
[426303438,1782261038000,-154.65784343,0.00020043,2]
[426303440,1782261038000,-306.32,0.0002043,2]
[426303444,1782261038000,-1704.63432095,0.00020576,2]
[426303479,1782261038000,-195.81766659,0.00020931,2]
[426303508,1782261038000,-365.50730341,0.00020931,2]
[426303485,1782261038000,-302.6359255,0.00020931,2]
[426303533,1782261038000,-331.04059959,0.00020931,2]
[426303529,1782261038000,-168.5931532,0.00020931,2]
[426303531,1782261038000,-335.67416978,0.00020931,2]
[426303535,1782261038000,-463.97353028,0.00020931,2]
[426303525,1782261038000,-438.44137025,0.00020931,2]
[426303527,1782261038000,-310.7023719,0.00020931,2]
[426303536,1782261038000,-161.41315887,0.00020931,2]
[426303538,1782261038000,-244.06649628,0.00020931,2]
[426303542,1782261038000,-308.85736041,0.00020931,2]
[426303544,1782261038000,-189.52697215,0.00020931,2]
[426303550,1782261038000,-171.15613928,0.00020931,2]
[426303553,1782261038000,-162.26137258,0.00020931,2]
[426303546,1782261038000,-375.21092958,0.00020931,2]
[426303548,1782261038000,-159.14958454,0.00020931,2]
[426303481,1782261038000,-179.02709233,0.00020931,2]
[426303521,1782261038000,-387.56954797,0.00020931,2]
[426303523,1782261038000,-391.9868998,0.00020931,2]
[426303540,1782261038000,-391.63533318,0.00020931,2]
[426303515,1782261038000,-258.96638403,0.00020931,2]
[426303519,1782261038000,-448.88830333,0.00020931,2]
[426303487,1782261038000,-309.61514596,0.00020931,2]
[426303493,1782261038000,-306.7781558,0.00020931,2]
[426303491,1782261038000,-356.58452168,0.00020931,2]
[426303495,1782261038000,-166.38152128,0.00020931,2]
[426303506,1782261038000,-197.2347298,0.00020931,2]
[426303551,1782261038000,-214.4824344,0.00020931,2]
[426303489,1782261038000,-219.25870447,0.00020931,2]
[426303505,1782261038000,-188.05211184,0.00020931,2]
[426303501,1782261038000,-442.26848802,0.00020931,2]
[426303503,1782261038000,-355.3699961,0.00020931,2]
[426303513,1782261038000,-326.89218055,0.00020931,2]
[426303497,1782261038000,-236.4673787,0.00020931,2]
[426303499,1782261038000,-382.18666854,0.00020931,2]
[426303511,1782261038000,-187.12083942,0.00020931,2]
[426303517,1782261038000,-340.57932461,0.00020931,2]
[426303598,1782261039000,-161.87,0.00022526,2]
[426303618,1782261039000,-151.0,0.00022596,2]
[426303616,1782261039000,-151.0,0.00022596,2]
[426303614,1782261039000,-151.0,0.00022596,2]
[426303600,1782261039000,-161.87,0.00022528,2]
[426303611,1782261039000,-151.0,0.00022596,2]
[426303602,1782261039000,-161.87,0.0002253,2]
[426303620,1782261039000,-151.0,0.00022596,2]
[426303613,1782261039000,-151.0,0.00022596,2]
[426303622,1782261039000,-151.0,0.00022596,2]
[426303641,1782261039000,-179.14,0.0002367,2]
[426303629,1782261039000,-151.0,0.00022596,2]
[426303625,1782261039000,-151.0,0.00022596,2]
[426303631,1782261039000,-151.0,0.00022596,2]
[426303635,1782261039000,-171.515812,0.00022652,2]
[426303633,1782261039000,-3044.3950463,0.00022609,2]
[426303637,1782261039000,-180.32695628,0.00023368,2]
[426303645,1782261039000,-431.29752584,0.00023877,2]
[426303649,1782261039000,-327.32401515,0.00024535,2]
[426303597,1782261039000,-161.87,0.00022524,2]
[426303627,1782261039000,-151.0,0.00022596,2]
[426303594,1782261039000,-161.87,0.00022522,2]
[426303565,1782261039000,-166.6534199,0.00020931,2]
[426303605,1782261039000,-161.87,0.0002253,2]
[426303557,1782261039000,-273.59925747,0.00020931,2]
[426303559,1782261039000,-244.42714914,0.00020931,2]
[426303555,1782261039000,-158.84520619,0.00020931,2]
[426303561,1782261039000,-401.20081723,0.00020931,2]
[426303563,1782261039000,-340.08779404,0.00020931,2]
[426303647,1782261039000,-165.59332112,0.00024108,3]
[426303567,1782261039000,-221.80280923,0.00020931,2]
[426303569,1782261039000,-161.33730963,0.00020931,2]
[426303571,1782261039000,-776.95160236,0.00020931,2]
[426303573,1782261039000,-313.10251254,0.00020931,2]
[426303575,1782261039000,-400.38641384,0.00020931,2]
[426303577,1782261039000,-160.0,0.00020954,2]
[426303579,1782261039000,-306.32,0.00020954,2]
[426303581,1782261039000,-360.56824912,0.00021,2]
[426303583,1782261039000,-500.0,0.00021205,2]
[426303585,1782261039000,-360.56824912,0.000213,2]
[426303587,1782261039000,-306.32,0.00021478,2]
[426303588,1782261039000,-507.53336461,0.00021479,2]
[426303590,1782261039000,-360.56824912,0.000215,2]
[426303593,1782261039000,-360.56824912,0.000217,2]
[426303607,1782261039000,-151.0,0.00022596,2]
[426303608,1782261039000,-151.0,0.00022596,2]
[426303643,1782261039000,-179.14,0.0002367,2]
[426303639,1782261039000,-151.57426548,0.00023623,2]
[426303654,1782261039000,-588.59404404,0.00025411,2]
[426303698,1782261039000,-500.0,0.00026163,2]
[426303709,1782261039000,-223.1478677,0.0002643,2]
[426303710,1782261039000,-500.0,0.00026437,2]
[426303711,1782261039000,-500.0,0.00026437,2]
[426303712,1782261039000,-500.0,0.00026437,2]
[426303713,1782261039000,-500.0,0.00026437,2]
[426303721,1782261039000,-500.0,0.00026437,2]
[426303724,1782261039000,-500.0,0.00026437,2]
[426303717,1782261039000,-500.0,0.00026437,2]
[426303715,1782261039000,-500.0,0.00026437,2]
[426303719,1782261039000,-500.0,0.00026437,2]
[426303714,1782261039000,-500.0,0.00026437,2]
[426303723,1782261039000,-500.0,0.00026437,2]
[426303726,1782261039000,-500.0,0.00026437,2]
[426303728,1782261039000,-500.0,0.00026437,2]
[426303730,1782261039000,-195.01910986,0.00026437,2]
[426303732,1782261039000,-160.0,0.00026437,2]
[426303734,1782261039000,-237.67331526,0.00026437,2]
[426303736,1782261039000,-180195.61153307,0.0002648,2]
[426303651,1782261039000,-850.84006936,0.00024685,3]
[426303741,1782261039000,-535524.78657022,0.00026487,2]
[426303706,1782261039000,-176.80861187,0.00026387,2]
[426303707,1782261039000,-1286.66487975,0.00026402,2]
[426303739,1782261039000,-1104288.22798794,0.0002648,2]
[426303701,1782261039000,-500.0,0.00026163,2]
[426303708,1782261039000,-900.8611987,0.0002643,2]
[426303656,1782261039000,-163.895,0.0002567,11]
[426303661,1782261039000,-283.843896,0.00025958,2]
[426303652,1782261039000,-283.843896,0.00024909,2]
[426303677,1782261039000,-151.5,0.00026163,2]
[426303663,1782261039000,-206.17600734,0.00026163,2]
[426303674,1782261039000,-151.5,0.00026163,2]
[426303681,1782261039000,-151.5,0.00026163,2]
[426303667,1782261039000,-151.5,0.00026163,2]
[426303679,1782261039000,-215.04220334,0.00026163,2]
[426303665,1782261039000,-296.11180433,0.00026163,2]
[426303673,1782261039000,-243.70006729,0.00026163,2]
[426303669,1782261039000,-151.5,0.00026163,2]
[426303683,1782261039000,-500.0,0.00026163,2]
[426303685,1782261039000,-500.0,0.00026163,2]
[426303687,1782261039000,-500.0,0.00026163,2]
[426303691,1782261039000,-500.0,0.00026163,2]
[426303693,1782261039000,-500.0,0.00026163,2]
[426303689,1782261039000,-500.0,0.00026163,2]
[426303695,1782261039000,-500.0,0.00026163,2]
[426303704,1782261039000,-277.71993064,0.00026163,2]
[426303671,1782261039000,-151.5,0.00026163,2]
[426303814,1782261040000,-936.6377374,0.00026487,2]
[426304185,1782261043000,-551.51506963,0.00026487,2]
[426305403,1782262232000,-3842.94673249,0.00012982,9]
[426305401,1782262232000,-1292.37799621,0.00012852,9]
[426305405,1782262232000,-2360.97076151,0.00013113,9]
[426305415,1782262232000,-648.1942693,0.00013113,9]
[426305412,1782262232000,-484.11241011,0.00013113,9]
[426305417,1782262232000,-486.29931868,0.00013113,9]
[426305410,1782262232000,-765.43130723,0.00013113,9]
[426305591,1782262238000,-151.0,0.00015561,2]
[426305594,1782262238000,-151.0,0.00015561,2]
[426305593,1782262238000,-151.0,0.00015561,2]
[426305595,1782262238000,-151.0,0.00015561,2]
[426305598,1782262238000,-151.0,0.00015561,2]
[426305597,1782262238000,-151.0,0.00015561,2]
[426305596,1782262238000,-151.0,0.00015561,2]
[426305600,1782262238000,-151.0,0.00015561,2]
[426305603,1782262238000,-7265.22374339,0.0001557,2]
[426305604,1782262238000,-5000.0,0.0001557,2]
[426305612,1782262238000,-213.18,0.00018,2]
[426305589,1782262238000,-151.0,0.00015561,2]
[426305605,1782262238000,-5000.0,0.0001557,2]
[426305602,1782262238000,-151.0,0.00015561,2]
[426305613,1782262238000,-1698.29,0.000183,2]
[426305599,1782262238000,-151.0,0.00015561,2]
[426305592,1782262238000,-151.0,0.00015561,2]
[426305575,1782262238000,-6898.92992019,0.00014369,2]
[426305588,1782262238000,-151.0,0.00015561,2]
[426305608,1782262238000,-1460.53,0.000168,2]
[426305573,1782262238000,-2603.14093757,0.00014369,2]
[426305572,1782262238000,-254.99193317,0.00013113,9]
[426305574,1782262238000,-497.92914224,0.00014369,2]
[426305576,1782262238000,-485.489841,0.00014835,2]
[426305578,1782262238000,-359.2,0.000154,2]
[426305579,1782262238000,-334.8462,0.000154,2]
[426305587,1782262238000,-151.0,0.00015561,2]
[426305577,1782262238000,-1124.5287,0.000154,2]
[426305582,1782262238000,-481.06990157,0.00015469,2]
[426305585,1782262238000,-151.0,0.00015561,2]
[426305583,1782262238000,-151.0,0.00015561,2]
[426305580,1782262238000,-500.0,0.00015469,2]
[426305586,1782262238000,-151.0,0.00015561,2]
[426305584,1782262238000,-151.0,0.00015561,2]
[426305590,1782262238000,-151.0,0.00015561,2]
[426305581,1782262238000,-510.53510967,0.00015469,2]
[426305611,1782262238000,-654.82,0.000168,2]
[426305601,1782262238000,-151.0,0.00015561,2]
[426305609,1782262238000,-202.54665828,0.000168,2]
[426305637,1782262238000,-236.29540249,0.00020043,2]
[426305633,1782262238000,-2221.1340682,0.0002,2]
[426305636,1782262238000,-155.74675013,0.00020043,2]
[426305639,1782262238000,-682.11959546,0.0002005,2]
[426305634,1782262238000,-213.18,0.0002004,2]
[426305635,1782262238000,-377.95788165,0.00020043,2]
[426305638,1782262238000,-161.86491716,0.00020043,2]
[426305632,1782262238000,-837.22,0.00019999,2]
[426305640,1782262238000,-316.27843574,0.0002005,2]
[426305641,1782262238000,-600.0,0.00020094,2]
[426305642,1782262238000,-189.229264,0.00020573,2]
[426305646,1782262238000,-311.49350025,0.00020576,2]
[426305645,1782262238000,-202.43938475,0.00020576,2]
[426305647,1782262238000,-472.59080498,0.00020576,2]
[426305648,1782262238000,-183.25280053,0.00020576,2]
[426305606,1782262238000,-5000.0,0.0001557,2]
[426305643,1782262238000,-566.93682248,0.00020576,2]
[426305628,1782262238000,-251.14619986,0.00019999,2]
[426305644,1782262238000,-465.44846301,0.00020576,2]
[426305630,1782262238000,-500.0,0.00019999,2]
[426305607,1782262238000,-5000.0,0.0001557,2]
[426305627,1782262238000,-500.0,0.00019999,2]
[426305610,1782262238000,-441.3,0.000168,2]
[426305616,1782262238000,-171.5158128,0.00018523,2]
[426305619,1782262238000,-158.13921787,0.00019251,2]
[426305617,1782262238000,-188.97894083,0.00019244,2]
[426305615,1782262238000,-761.42,0.000183,2]
[426305618,1782262238000,-852.64949433,0.00019251,2]
[426305614,1782262238000,-513.14,0.000183,2]
[426305625,1782262238000,-868.02,0.000197,2]
[426305626,1782262238000,-1029.3319038,0.0001995,2]
[426305624,1782262238000,-584.98,0.000197,2]
[426305629,1782262238000,-248.85380014,0.00019999,2]
[426305622,1782262238000,-182.6,0.00019453,2]
[426305623,1782262238000,-1936.05,0.000197,2]
[426305620,1782262238000,-800.0,0.00019294,2]
[426305621,1782262238000,-620.58171006,0.00019294,2]
[426305631,1782262238000,-500.0,0.00019999,2]
[426305674,1782262239000,-181.31623788,0.0002062,2]
[426305681,1782262239000,-400.0,0.00020628,2]
[426305678,1782262239000,-187.11190564,0.0002062,2]
[426305679,1782262239000,-296.95990911,0.0002062,2]
[426305675,1782262239000,-157.81305068,0.0002062,2]
[426305677,1782262239000,-185.95907731,0.0002062,2]
[426305676,1782262239000,-165.02021955,0.0002062,2]
[426305683,1782262239000,-182.0093569,0.00020628,2]
[426305680,1782262239000,-199.06157125,0.0002062,2]
[426305682,1782262239000,-244.62017135,0.00020628,2]
[426305692,1782262239000,-159.62775173,0.00020931,2]
[426305689,1782262239000,-501.28827127,0.00020799,2]
[426305687,1782262239000,-264.99441175,0.00020799,2]